[Event "*** Titled Tuesday Blitz"]
[Site "Chess.com"]
[Date "2021.03.09"]
[Round "3"]
[White "Hypercar"]
[Black "Sagar_Raina"]
[Result "0-1"]
[WhiteElo "2491"]
[BlackElo "2277"]
[TimeControl "180+1"]
[EndTime "10:27:56 PST"]
[Termination "Sagar_Raina won by checkmate"]

1. d4 {[%clk 0:03:00.9]} 1... Nf6 {[%clk 0:02:54.9]} 2. c4 {[%clk 0:02:56]} 2...
e6 {[%clk 0:02:55]} 3. Nf3 {[%clk 0:02:56.2]} 3... Bb4+ {[%clk 0:02:53.3]} 4.
Bd2 {[%clk 0:02:55.6]} 4... Qe7 {[%clk 0:02:52.8]} 5. e3 {[%clk 0:02:55.7]} 5...
O-O {[%clk 0:02:49.8]} 6. Qc2 {[%clk 0:02:55.2]} 6... Bxd2+ {[%clk 0:02:42.8]}
7. Nbxd2 {[%clk 0:02:54.9]} 7... d6 {[%clk 0:02:42.3]} 8. O-O-O {[%clk
0:02:55.1]} 8... e5 {[%clk 0:02:36.7]} 9. h3 {[%clk 0:02:55.3]} 9... e4 {[%clk
0:02:09.6]} 10. Ne1 {[%clk 0:02:55.1]} 10... c5 {[%clk 0:02:07.8]} 11. d5 {[%clk
0:02:54.5]} 11... b5 {[%clk 0:02:05.6]} 12. g4 {[%clk 0:02:52.6]} 12... Re8
{[%clk 0:01:59.4]} 13. Ng2 {[%clk 0:02:51.5]} 13... bxc4 {[%clk 0:01:56]} 14.
Bxc4 {[%clk 0:02:49.1]} 14... Ba6 {[%clk 0:01:54.6]} 15. Nf4 {[%clk 0:02:47.9]}
15... Bxc4 {[%clk 0:01:46]} 16. Nxc4 {[%clk 0:02:47.8]} 16... Na6 {[%clk
0:01:36.8]} 17. a3 {[%clk 0:02:47.6]} 17... Nc7 {[%clk 0:01:32.6]} 18. g5 {[%clk
0:02:47.1]} 18... Nd7 {[%clk 0:01:31]} 19. h4 {[%clk 0:02:47.4]} 19... Nb6
{[%clk 0:01:20.7]} 20. Rhg1 {[%clk 0:02:40.2]} 20... Nxc4 {[%clk 0:01:18.4]} 21.
Qxc4 {[%clk 0:02:41.1]} 21... Rab8 {[%clk 0:01:17.8]} 22. h5 {[%clk 0:02:37.5]}
22... Qe5 {[%clk 0:01:17.3]} 23. Qc2 {[%clk 0:02:37.6]} 23... Nb5 {[%clk
0:01:07.3]} 24. g6 {[%clk 0:02:26.2]} 24... fxg6 {[%clk 0:01:03.4]} 25. hxg6
{[%clk 0:02:25.9]} 25... h6 {[%clk 0:01:03.5]} 26. Kd2 {[%clk 0:02:18.2]} 26...
c4 {[%clk 0:01:01.2]} 27. Rb1 {[%clk 0:02:15.1]} 27... Rec8 {[%clk 0:00:54.7]}
28. Rgc1 {[%clk 0:02:07.8]} 28... c3+ {[%clk 0:00:54.5]} 29. bxc3 {[%clk
0:02:07.6]} 29... Nxa3 {[%clk 0:00:39.2]} 30. Rxb8 {[%clk 0:02:05.9]} 30... Rxb8
{[%clk 0:00:39.6]} 31. Qa2 {[%clk 0:02:05.9]} 31... Rb2+ {[%clk 0:00:38.3]} 32.
Qxb2 {[%clk 0:02:03.9]} 32... Nc4+ {[%clk 0:00:38.9]} 33. Kc2 {[%clk 0:02:04.2]}
33... Nxb2 {[%clk 0:00:39.4]} 34. Kxb2 {[%clk 0:02:05.1]} 34... Qg5 {[%clk
0:00:24]} 35. Ra1 {[%clk 0:01:57.8]} 35... Qh4 {[%clk 0:00:23.5]} 36. Rxa7
{[%clk 0:01:53.1]} 36... Qxf2+ {[%clk 0:00:23.5]} 37. Kb3 {[%clk 0:01:53.4]}
37... Kf8 {[%clk 0:00:20.8]} 38. Rf7+ {[%clk 0:01:35.9]} 38... Ke8 {[%clk
0:00:18.5]} 39. Rxg7 {[%clk 0:01:35.3]} 39... Qxe3 {[%clk 0:00:16.7]} 40. Ne6
{[%clk 0:01:35.5]} 40... Qb6+ {[%clk 0:00:14.9]} 41. Kc4 {[%clk 0:01:35.6]}
41... Qa6+ {[%clk 0:00:13.7]} 42. Kd4 {[%clk 0:01:35.1]} 42... Qd3# {[%clk
0:00:13.7]} 0-1

[Event "*** Titled Tuesday Blitz"]
[Site "Chess.com"]
[Date "2021.03.09"]
[Round "3"]
[White "AungTZ"]
[Black "muchojogo"]
[Result "0-1"]
[WhiteElo "2192"]
[BlackElo "2365"]
[TimeControl "180+1"]
[EndTime "10:28:00 PST"]
[Termination "muchojogo won by resignation"]

1. e4 {[%clk 0:01:32.4]} 1... c5 {[%clk 0:02:55.9]} 2. Nf3 {[%clk 0:01:31.6]}
2... d6 {[%clk 0:02:51.5]} 3. Bb5+ {[%clk 0:01:25.9]} 3... Bd7 {[%clk
0:02:49.6]} 4. Bxd7+ {[%clk 0:01:25.9]} 4... Nxd7 {[%clk 0:02:50.5]} 5. O-O
{[%clk 0:01:26]} 5... Ngf6 {[%clk 0:02:51.4]} 6. Re1 {[%clk 0:01:25.8]} 6... e6
{[%clk 0:02:51.4]} 7. c3 {[%clk 0:01:26.7]} 7... Be7 {[%clk 0:02:50.9]} 8. d4
{[%clk 0:01:27.6]} 8... cxd4 {[%clk 0:02:51.4]} 9. cxd4 {[%clk 0:01:27.7]} 9...
d5 {[%clk 0:02:52.3]} 10. e5 {[%clk 0:01:26]} 10... Ne4 {[%clk 0:02:52.9]} 11.
Nbd2 {[%clk 0:01:25.5]} 11... Nxd2 {[%clk 0:02:53.5]} 12. Bxd2 {[%clk
0:01:25.7]} 12... O-O {[%clk 0:02:54.4]} 13. Rc1 {[%clk 0:01:24.9]} 13... Rc8
{[%clk 0:02:55]} 14. Qb3 {[%clk 0:01:24.7]} 14... Qb6 {[%clk 0:02:52.5]} 15.
Qxb6 {[%clk 0:01:20.9]} 15... Nxb6 {[%clk 0:02:53.4]} 16. Bc3 {[%clk 0:01:12.5]}
16... Rc6 {[%clk 0:02:51.2]} 17. Rcd1 {[%clk 0:01:11.9]} 17... Rfc8 {[%clk
0:02:51.2]} 18. h4 {[%clk 0:01:11.1]} 18... Na4 {[%clk 0:02:50.9]} 19. Rb1
{[%clk 0:01:03.9]} 19... b6 {[%clk 0:02:47.7]} 20. Bd2 {[%clk 0:01:03.6]} 20...
Rc2 {[%clk 0:02:47]} 21. Bc1 {[%clk 0:01:03.1]} 21... h5 {[%clk 0:02:33]} 22.
Rd1 {[%clk 0:01:00.2]} 22... Kh7 {[%clk 0:02:25.6]} 23. g3 {[%clk 0:00:58.8]}
23... Kg6 {[%clk 0:02:25]} 24. Ne1 {[%clk 0:00:58.7]} 24... R2c6 {[%clk
0:02:17.2]} 25. Be3 {[%clk 0:00:57.2]} 25... b5 {[%clk 0:02:14.9]} 26. Nd3
{[%clk 0:00:51.6]} 26... Kf5 {[%clk 0:02:11.3]} 27. Kg2 {[%clk 0:00:49.3]} 27...
Ke4 {[%clk 0:02:08.5]} 28. Nf4 {[%clk 0:00:48.7]} 28... g6 {[%clk 0:02:06.3]}
29. Ne2 {[%clk 0:00:46.1]} 29... Rc2 {[%clk 0:02:04.4]} 30. Kf1 {[%clk
0:00:44.5]} 30... Rxb2 {[%clk 0:01:52.6]} 31. Rbc1 {[%clk 0:00:40]} 31... Rcc2
{[%clk 0:01:49.7]} 32. Rxc2 {[%clk 0:00:38.1]} 32... Rxc2 {[%clk 0:01:50.6]} 33.
Bc1 {[%clk 0:00:17]} 33... Rxa2 {[%clk 0:01:46.1]} 34. g4 {[%clk 0:00:16.2]}
34... Bxh4 {[%clk 0:01:36.4]} 35. gxh5 {[%clk 0:00:15.1]} 35... gxh5 {[%clk
0:01:36.3]} 36. Be3 {[%clk 0:00:12]} 36... Rxe2 {[%clk 0:01:34.2]} 37. Kxe2
{[%clk 0:00:11.2]} 37... Nc3+ {[%clk 0:01:34.8]} 38. Kd2 {[%clk 0:00:12.1]}
38... Nxd1 {[%clk 0:01:35.3]} 39. Kxd1 {[%clk 0:00:13]} 39... Kf3 {[%clk
0:01:34.1]} 40. Kc2 {[%clk 0:00:13.9]} 40... Bxf2 {[%clk 0:01:33.9]} 41. Kb3
{[%clk 0:00:14.8]} 41... Bxe3 {[%clk 0:01:33.9]} 0-1

[Event "*** Titled Tuesday Blitz"]
[Site "Chess.com"]
[Date "2021.03.09"]
[Round "3"]
[White "VinzentSpitzl"]
[Black "C_K_G"]
[Result "1-0"]
[WhiteElo "2363"]
[BlackElo "2019"]
[TimeControl "180+1"]
[EndTime "10:28:03 PST"]
[Termination "VinzentSpitzl won by resignation"]

1. e4 {[%clk 0:03:00.9]} 1... c5 {[%clk 0:03:00.3]} 2. Nf3 {[%clk 0:03:00.8]}
2... d6 {[%clk 0:03:00.8]} 3. d4 {[%clk 0:03:01.3]} 3... cxd4 {[%clk 0:03:01.7]}
4. Nxd4 {[%clk 0:03:02.2]} 4... Nf6 {[%clk 0:03:01.8]} 5. Nc3 {[%clk 0:03:02.7]}
5... a6 {[%clk 0:03:02.3]} 6. Bg5 {[%clk 0:03:03.1]} 6... e5 {[%clk 0:03:03.2]}
7. Nf5 {[%clk 0:02:58.4]} 7... Bxf5 {[%clk 0:03:01.7]} 8. exf5 {[%clk
0:02:59.3]} 8... Be7 {[%clk 0:03:01.8]} 9. Bc4 {[%clk 0:02:57.8]} 9... O-O
{[%clk 0:03:01.1]} 10. Bxf6 {[%clk 0:02:57.9]} 10... Bxf6 {[%clk 0:03:00.8]} 11.
O-O {[%clk 0:02:57.9]} 11... Nc6 {[%clk 0:02:56.6]} 12. Ne4 {[%clk 0:02:46.3]}
12... Rc8 {[%clk 0:02:46.9]} 13. Bb3 {[%clk 0:02:28.8]} 13... Nd4 {[%clk
0:02:45]} 14. Qh5 {[%clk 0:02:06.2]} 14... Nxb3 {[%clk 0:02:41]} 15. cxb3 {[%clk
0:01:54.1]} 15... d5 {[%clk 0:02:38.8]} 16. Rfd1 {[%clk 0:01:53.9]} 16... d4
{[%clk 0:02:36.5]} 17. Qe2 {[%clk 0:01:49.8]} 17... h6 {[%clk 0:02:30.4]} 18. g3
{[%clk 0:01:47.7]} 18... Re8 {[%clk 0:02:26.9]} 19. h4 {[%clk 0:01:45.3]} 19...
Be7 {[%clk 0:02:22.8]} 20. Qd3 {[%clk 0:01:41.2]} 20... Qd5 {[%clk 0:02:09.1]}
21. Rac1 {[%clk 0:01:34.2]} 21... b5 {[%clk 0:02:01.2]} 22. Kh2 {[%clk
0:01:25.3]} 22... Bf8 {[%clk 0:01:56.6]} 23. Kh3 {[%clk 0:01:24.2]} 23... Rc6
{[%clk 0:01:53.7]} 24. Rxc6 {[%clk 0:01:14.8]} 24... Qxc6 {[%clk 0:01:54.6]} 25.
g4 {[%clk 0:01:14.4]} 25... Rc8 {[%clk 0:01:51.9]} 26. Kg3 {[%clk 0:01:09.5]}
26... Qc2 {[%clk 0:01:49.1]} 27. Qxc2 {[%clk 0:01:04.9]} 27... Rxc2 {[%clk
0:01:50]} 28. Rd2 {[%clk 0:01:05.3]} 28... Rc1 {[%clk 0:01:47.5]} 29. g5 {[%clk
0:01:01.5]} 29... hxg5 {[%clk 0:01:46.3]} 30. hxg5 {[%clk 0:01:02.4]} 30... Bb4
{[%clk 0:01:44.9]} 31. Rd3 {[%clk 0:00:57.9]} 31... Rc2 {[%clk 0:01:42.8]} 32.
a3 {[%clk 0:00:57.7]} 32... Be1 {[%clk 0:01:21.8]} 33. Rd1 {[%clk 0:00:42.5]}
33... Bd2 {[%clk 0:01:20.5]} 34. Rxd2 {[%clk 0:00:41.8]} 34... Rxd2 {[%clk
0:01:21.4]} 35. Nxd2 {[%clk 0:00:42.7]} 35... Kf8 {[%clk 0:01:14.4]} 36. Kf3
{[%clk 0:00:40.3]} 36... Ke8 {[%clk 0:01:13.5]} 37. Ke4 {[%clk 0:00:40.7]} 37...
f6 {[%clk 0:01:13.7]} 38. g6 {[%clk 0:00:39.7]} 38... Kd7 {[%clk 0:01:12.8]} 39.
Kd5 {[%clk 0:00:40.1]} 1-0

[Event "*** Titled Tuesday Blitz"]
[Site "Chess.com"]
[Date "2021.03.09"]
[Round "3"]
[White "SaqoChess_Twitch"]
[Black "kuba2006"]
[Result "0-1"]
[WhiteElo "2517"]
[BlackElo "2347"]
[TimeControl "180+1"]
[EndTime "10:28:05 PST"]
[Termination "kuba2006 won by resignation"]

1. d4 {[%clk 0:03:00.9]} 1... Nf6 {[%clk 0:03:00.9]} 2. e3 {[%clk 0:03:01.5]}
2... g6 {[%clk 0:02:58.5]} 3. Nf3 {[%clk 0:03:02.2]} 3... Bg7 {[%clk 0:02:59.1]}
4. Be2 {[%clk 0:03:02.9]} 4... d6 {[%clk 0:02:59.5]} 5. O-O {[%clk 0:03:03.8]}
5... O-O {[%clk 0:03:00]} 6. Nbd2 {[%clk 0:03:04.7]} 6... Nbd7 {[%clk
0:02:59.9]} 7. b3 {[%clk 0:03:05.6]} 7... e5 {[%clk 0:02:59.6]} 8. dxe5 {[%clk
0:03:06.1]} 8... dxe5 {[%clk 0:02:59.3]} 9. Bb2 {[%clk 0:03:07]} 9... e4 {[%clk
0:02:56.6]} 10. Nd4 {[%clk 0:03:04.9]} 10... a6 {[%clk 0:02:38.5]} 11. b4 {[%clk
0:02:56.9]} 11... Nb6 {[%clk 0:02:17.3]} 12. c4 {[%clk 0:02:54.5]} 12... a5
{[%clk 0:01:54.6]} 13. b5 {[%clk 0:02:49.1]} 13... a4 {[%clk 0:01:52.9]} 14. a3
{[%clk 0:02:39.2]} 14... Re8 {[%clk 0:01:27.9]} 15. Qc2 {[%clk 0:02:39.1]} 15...
Qe7 {[%clk 0:01:11.2]} 16. Bc3 {[%clk 0:02:37.6]} 16... Bg4 {[%clk 0:01:00.4]}
17. Bb4 {[%clk 0:02:36.8]} 17... Qe5 {[%clk 0:00:58.3]} 18. h3 {[%clk
0:02:30.2]} 18... Bxe2 {[%clk 0:00:56]} 19. Nxe2 {[%clk 0:02:31.1]} 19... Rad8
{[%clk 0:00:52.8]} 20. Rad1 {[%clk 0:02:29.8]} 20... Qh5 {[%clk 0:00:41.5]} 21.
Ng3 {[%clk 0:02:27.9]} 21... Qh4 {[%clk 0:00:38.5]} 22. Ndxe4 {[%clk 0:02:20.2]}
22... Nxe4 {[%clk 0:00:24.2]} 23. Rxd8 {[%clk 0:02:19.8]} 23... Rxd8 {[%clk
0:00:23.6]} 24. Qxe4 {[%clk 0:02:16.8]} 24... Qxe4 {[%clk 0:00:20.5]} 25. Nxe4
{[%clk 0:02:17.7]} 25... Nxc4 {[%clk 0:00:20]} 26. Rc1 {[%clk 0:02:18.4]} 26...
Nb6 {[%clk 0:00:20]} 27. Rxc7 {[%clk 0:02:18.5]} 27... Rd1+ {[%clk 0:00:19.7]}
28. Kh2 {[%clk 0:02:18.2]} 28... Be5+ {[%clk 0:00:20.2]} 29. f4 {[%clk
0:02:17.1]} 29... Bxc7 {[%clk 0:00:21.1]} 30. g4 {[%clk 0:02:16.1]} 30... Rd3
{[%clk 0:00:20.7]} 31. Nf6+ {[%clk 0:02:11.4]} 31... Kh8 {[%clk 0:00:16.7]} 32.
Bc5 {[%clk 0:02:09.5]} 32... Nc4 {[%clk 0:00:14.5]} 33. Bd4 {[%clk 0:02:07.3]}
33... Bxf4+ {[%clk 0:00:14.5]} 34. Kg2 {[%clk 0:02:06.5]} 34... Nxe3+ {[%clk
0:00:14.2]} 35. Kf3 {[%clk 0:02:06.2]} 35... Rxd4 {[%clk 0:00:13.8]} 36. Ne4
{[%clk 0:02:06.5]} 36... Rxe4 {[%clk 0:00:13.7]} 37. Kxe4 {[%clk 0:02:07.4]}
37... Bh6 {[%clk 0:00:13.7]} 38. Kd4 {[%clk 0:02:06.9]} 38... Nc2+ {[%clk
0:00:13.8]} 39. Kc3 {[%clk 0:02:06.9]} 39... Nxa3 {[%clk 0:00:14.7]} 40. Kb4
{[%clk 0:02:07.8]} 40... Bf8+ {[%clk 0:00:14.2]} 41. Kxa4 {[%clk 0:02:08.2]}
41... b6 {[%clk 0:00:14.8]} 42. Kb3 {[%clk 0:02:08]} 42... Nxb5 {[%clk
0:00:14.5]} 43. Kc4 {[%clk 0:02:08.9]} 43... Nc7 {[%clk 0:00:15.4]} 44. Kd4
{[%clk 0:02:08.9]} 44... b5 {[%clk 0:00:16.3]} 45. Ke5 {[%clk 0:02:09.8]} 45...
b4 {[%clk 0:00:17.2]} 46. Kd4 {[%clk 0:02:10.7]} 46... b3 {[%clk 0:00:17.5]} 47.
Kc3 {[%clk 0:02:11.4]} 47... Nd5+ {[%clk 0:00:17.6]} 48. Kxb3 {[%clk 0:02:12.3]}
48... Nf4 {[%clk 0:00:18.5]} 49. Kc4 {[%clk 0:02:13.2]} 49... Nxh3 {[%clk
0:00:18.7]} 50. Kd3 {[%clk 0:02:14.1]} 50... Nf2+ {[%clk 0:00:19.3]} 51. Ke3
{[%clk 0:02:14.3]} 51... Nxg4+ {[%clk 0:00:20.2]} 52. Kf3 {[%clk 0:02:15.2]}
52... Nh6 {[%clk 0:00:20.9]} 53. Kf4 {[%clk 0:02:16.1]} 53... Kg7 {[%clk
0:00:21.8]} 54. Kg5 {[%clk 0:02:17]} 54... Be7+ {[%clk 0:00:22.3]} 55. Kf4
{[%clk 0:02:17.2]} 55... f6 {[%clk 0:00:22.9]} 56. Kg3 {[%clk 0:02:18.1]} 56...
Nf7 {[%clk 0:00:22.8]} 57. Kh3 {[%clk 0:02:19]} 57... h5 {[%clk 0:00:23.3]} 58.
Kh4 {[%clk 0:02:19.2]} 58... Kh6 {[%clk 0:00:22.9]} 59. Kh3 {[%clk 0:02:20.1]}
59... g5 {[%clk 0:00:23.8]} 60. Kg3 {[%clk 0:02:21]} 60... f5 {[%clk 0:00:24.3]}
61. Kh3 {[%clk 0:02:21.9]} 61... h4 {[%clk 0:00:24.8]} 62. Kg2 {[%clk
0:02:22.8]} 62... g4 {[%clk 0:00:25.2]} 63. Kh2 {[%clk 0:02:23]} 63... f4 {[%clk
0:00:26]} 64. Kg2 {[%clk 0:02:23.9]} 64... Kg5 {[%clk 0:00:26.7]} 65. Kf2 {[%clk
0:02:24.8]} 65... h3 {[%clk 0:00:27.2]} 66. Kg1 {[%clk 0:02:25.7]} 66... Kh4
{[%clk 0:00:27.6]} 67. Kh1 {[%clk 0:02:26.6]} 67... g3 {[%clk 0:00:28.2]} 68.
Kg1 {[%clk 0:02:27.5]} 68... f3 {[%clk 0:00:28.8]} 69. Kh1 {[%clk 0:02:28.4]}
69... Kg4 {[%clk 0:00:27.5]} 70. Kg1 {[%clk 0:02:28.7]} 70... Bc5+ {[%clk
0:00:27.3]} 71. Kh1 {[%clk 0:02:28.4]} 71... g2+ {[%clk 0:00:27.4]} 0-1

[Event "*** Titled Tuesday Blitz"]
[Site "Chess.com"]
[Date "2021.03.09"]
[Round "3"]
[White "2Tilted"]
[Black "AldokhinIvan"]
[Result "0-1"]
[WhiteElo "2307"]
[BlackElo "2521"]
[TimeControl "180+1"]
[EndTime "10:28:06 PST"]
[Termination "AldokhinIvan won by resignation"]

1. d4 {[%clk 0:03:00.3]} 1... Nf6 {[%clk 0:02:57.8]} 2. Nf3 {[%clk 0:03:00.3]}
2... g6 {[%clk 0:02:58.4]} 3. c4 {[%clk 0:03:00.1]} 3... Bg7 {[%clk 0:02:59.2]}
4. Nc3 {[%clk 0:03:00.4]} 4... d6 {[%clk 0:03:00]} 5. e4 {[%clk 0:03:00.7]} 5...
O-O {[%clk 0:03:00.9]} 6. Be2 {[%clk 0:03:01.2]} 6... Nc6 {[%clk 0:03:01.4]} 7.
O-O {[%clk 0:03:00.3]} 7... Re8 {[%clk 0:03:01.2]} 8. d5 {[%clk 0:02:58.9]} 8...
Nb4 {[%clk 0:03:01.5]} 9. a3 {[%clk 0:02:55.5]} 9... Na6 {[%clk 0:03:01.4]} 10.
Qc2 {[%clk 0:02:44.8]} 10... e6 {[%clk 0:03:01.5]} 11. Re1 {[%clk 0:02:28]}
11... exd5 {[%clk 0:02:57.8]} 12. cxd5 {[%clk 0:02:28]} 12... Nc5 {[%clk
0:02:57.7]} 13. Bd3 {[%clk 0:02:01.3]} 13... Bg4 {[%clk 0:02:24.8]} 14. Nd2
{[%clk 0:01:58]} 14... Bd7 {[%clk 0:02:19.4]} 15. b4 {[%clk 0:01:55.4]} 15...
Nxd3 {[%clk 0:02:15.3]} 16. Qxd3 {[%clk 0:01:55.3]} 16... Ng4 {[%clk 0:02:16.2]}
17. h3 {[%clk 0:01:46.9]} 17... Nxf2 {[%clk 0:02:08.1]} 18. Kxf2 {[%clk
0:01:45.1]} 18... Qf6+ {[%clk 0:02:02.3]} 19. Kg1 {[%clk 0:01:24.3]} 19... Qxc3
{[%clk 0:02:02.1]} 20. Qxc3 {[%clk 0:01:25.2]} 20... Bxc3 {[%clk 0:02:02.2]} 21.
Rb1 {[%clk 0:01:15.8]} 21... Ba4 {[%clk 0:01:58.1]} 22. Re3 {[%clk 0:00:44.5]}
22... Bd4 {[%clk 0:01:57]} 23. Kf2 {[%clk 0:00:44.5]} 23... f5 {[%clk
0:01:51.2]} 24. Bb2 {[%clk 0:00:42.8]} 24... Bxe3+ {[%clk 0:01:43.6]} 25. Kxe3
{[%clk 0:00:43.3]} 25... Bc2 {[%clk 0:01:44.3]} 26. Rc1 {[%clk 0:00:41.9]} 26...
Bxe4 {[%clk 0:01:44.7]} 27. Rxc7 {[%clk 0:00:40.5]} 27... Bxd5+ {[%clk
0:01:40.6]} 28. Kf4 {[%clk 0:00:40.5]} 28... Bf7 {[%clk 0:01:27.1]} 29. Nf3
{[%clk 0:00:36.3]} 29... h6 {[%clk 0:01:26.9]} 30. g4 {[%clk 0:00:30.2]} 30...
Re4+ {[%clk 0:01:25.2]} 31. Kg3 {[%clk 0:00:30.5]} 31... f4+ {[%clk 0:01:25]}
32. Kh4 {[%clk 0:00:27.3]} 32... g5+ {[%clk 0:01:11.7]} 33. Nxg5 {[%clk
0:00:27.7]} 33... hxg5+ {[%clk 0:01:11.1]} 34. Kxg5 {[%clk 0:00:28.6]} 34... f3
{[%clk 0:01:09.4]} 0-1

[Event "*** Titled Tuesday Blitz"]
[Site "Chess.com"]
[Date "2021.03.09"]
[Round "3"]
[White "katchesskat"]
[Black "A-Fier"]
[Result "1/2-1/2"]
[WhiteElo "2320"]
[BlackElo "2695"]
[TimeControl "180+1"]
[EndTime "10:28:07 PST"]
[Termination "Game drawn by repetition"]

1. c4 {[%clk 0:03:00.9]} 1... c6 {[%clk 0:02:59]} 2. Nf3 {[%clk 0:02:56.6]} 2...
d5 {[%clk 0:02:59.2]} 3. e3 {[%clk 0:02:56.2]} 3... Nf6 {[%clk 0:02:59.5]} 4.
Qc2 {[%clk 0:02:54]} 4... e6 {[%clk 0:02:59.6]} 5. a3 {[%clk 0:02:53.9]} 5...
Bd6 {[%clk 0:02:59.7]} 6. b4 {[%clk 0:02:53.6]} 6... e5 {[%clk 0:02:57.8]} 7.
Bb2 {[%clk 0:02:52.6]} 7... Qe7 {[%clk 0:02:57.8]} 8. d3 {[%clk 0:02:51.9]} 8...
O-O {[%clk 0:02:57.7]} 9. Nbd2 {[%clk 0:02:52.1]} 9... a5 {[%clk 0:02:56.8]} 10.
c5 {[%clk 0:02:51.8]} 10... Bc7 {[%clk 0:02:56.5]} 11. Be2 {[%clk 0:02:48.3]}
11... Bg4 {[%clk 0:02:55.2]} 12. h3 {[%clk 0:02:47.2]} 12... Bh5 {[%clk
0:02:55.1]} 13. O-O {[%clk 0:02:43.3]} 13... Nbd7 {[%clk 0:02:48.6]} 14. Rfe1
{[%clk 0:02:43]} 14... e4 {[%clk 0:02:48.3]} 15. dxe4 {[%clk 0:02:42.6]} 15...
dxe4 {[%clk 0:02:48.6]} 16. Nh2 {[%clk 0:02:36.5]} 16... Bxe2 {[%clk 0:02:46.1]}
17. Rxe2 {[%clk 0:02:37.4]} 17... axb4 {[%clk 0:02:43.4]} 18. axb4 {[%clk
0:02:36.8]} 18... Rxa1+ {[%clk 0:02:44.3]} 19. Bxa1 {[%clk 0:02:37.5]} 19... Ra8
{[%clk 0:02:45]} 20. Bd4 {[%clk 0:02:30.3]} 20... Qe6 {[%clk 0:02:28.5]} 21.
Nhf1 {[%clk 0:02:27.2]} 21... Ra2 {[%clk 0:02:27]} 22. Qd1 {[%clk 0:02:23.4]}
22... Ne5 {[%clk 0:02:26]} 23. Bxe5 {[%clk 0:02:19.1]} 23... Bxe5 {[%clk
0:02:24.6]} 24. Nc4 {[%clk 0:02:04.3]} 24... Ra8 {[%clk 0:02:12.8]} 25. Nxe5
{[%clk 0:01:58.8]} 25... Qxe5 {[%clk 0:02:13.7]} 26. Rd2 {[%clk 0:01:59.1]}
26... Nd5 {[%clk 0:02:14.4]} 27. b5 {[%clk 0:01:55.5]} 27... h5 {[%clk
0:02:14.3]} 28. Rd4 {[%clk 0:01:50.2]} 28... g6 {[%clk 0:02:08.7]} 29. Ng3
{[%clk 0:01:38.9]} 29... Nf6 {[%clk 0:02:05.9]} 30. Rd8+ {[%clk 0:01:30.4]}
30... Rxd8 {[%clk 0:02:05.3]} 31. Qxd8+ {[%clk 0:01:31.3]} 31... Kg7 {[%clk
0:02:06]} 32. bxc6 {[%clk 0:01:21.8]} 32... bxc6 {[%clk 0:02:05.9]} 33. Qd4
{[%clk 0:01:01.6]} 33... Qxd4 {[%clk 0:02:06.1]} 34. exd4 {[%clk 0:01:01.8]}
34... Kf8 {[%clk 0:02:07]} 35. Kf1 {[%clk 0:01:02.1]} 35... Ke7 {[%clk
0:02:06.8]} 36. Ke2 {[%clk 0:01:02.3]} 36... Ke6 {[%clk 0:02:04.9]} 37. Ke3
{[%clk 0:01:01]} 37... Kd5 {[%clk 0:02:05.5]} 38. Ne2 {[%clk 0:01:00.1]} 38...
Kc4 {[%clk 0:02:01.6]} 39. g3 {[%clk 0:00:39.7]} 39... g5 {[%clk 0:01:59.3]} 40.
h4 {[%clk 0:00:33.1]} 40... gxh4 {[%clk 0:01:45.3]} 41. gxh4 {[%clk 0:00:32.6]}
41... Kd5 {[%clk 0:01:45.9]} 42. Nf4+ {[%clk 0:00:31.5]} 42... Kc4 {[%clk
0:01:46.1]} 43. Ne2 {[%clk 0:00:25.1]} 43... Kd5 {[%clk 0:01:30.8]} 44. Nc3+
{[%clk 0:00:13.6]} 44... Kc4 {[%clk 0:01:31.2]} 45. Ne2 {[%clk 0:00:13.5]}
1/2-1/2

[Event "*** Titled Tuesday Blitz"]
[Site "Chess.com"]
[Date "2021.03.09"]
[Round "3"]
[White "Kaua18"]
[Black "Khnykin_Nikolay"]
[Result "1-0"]
[WhiteElo "2300"]
[BlackElo "2054"]
[TimeControl "180+1"]
[EndTime "10:28:08 PST"]
[Termination "Kaua18 won on time"]

1. e4 {[%clk 0:02:59.7]} 1... c5 {[%clk 0:02:58.2]} 2. Nf3 {[%clk 0:02:58.7]}
2... e6 {[%clk 0:02:57.4]} 3. d4 {[%clk 0:02:56.2]} 3... cxd4 {[%clk 0:02:55.5]}
4. Nxd4 {[%clk 0:02:57.1]} 4... Nf6 {[%clk 0:02:53.7]} 5. Nc3 {[%clk 0:02:53.7]}
5... d6 {[%clk 0:02:50.5]} 6. Rg1 {[%clk 0:02:52.7]} 6... Be7 {[%clk 0:02:48.1]}
7. g4 {[%clk 0:02:52.3]} 7... Nc6 {[%clk 0:02:37.3]} 8. g5 {[%clk 0:02:51.3]}
8... Nd7 {[%clk 0:02:36.1]} 9. h4 {[%clk 0:02:44.7]} 9... Nde5 {[%clk
0:02:17.9]} 10. Be3 {[%clk 0:02:32.3]} 10... O-O {[%clk 0:01:37.6]} 11. f4
{[%clk 0:02:22.2]} 11... Nxd4 {[%clk 0:01:32.7]} 12. Bxd4 {[%clk 0:02:23.1]}
12... Nc6 {[%clk 0:01:29.8]} 13. Bxg7 {[%clk 0:02:13.5]} 13... Kxg7 {[%clk
0:01:19.6]} 14. h5 {[%clk 0:02:10.8]} 14... Qb6 {[%clk 0:01:07.7]} 15. Rg3
{[%clk 0:02:06.6]} 15... Nd4 {[%clk 0:00:28.7]} 16. Bd3 {[%clk 0:01:40]} 16...
Qxb2 {[%clk 0:00:20.3]} 17. Na4 {[%clk 0:01:21.1]} 17... Qb4+ {[%clk 0:00:19.4]}
18. c3 {[%clk 0:01:20.6]} 18... Qa5 {[%clk 0:00:14.6]} 19. Kf1 {[%clk
0:01:14.9]} 19... Nc6 {[%clk 0:00:13.8]} 20. Rb1 {[%clk 0:01:11.7]} 20... a6
{[%clk 0:00:12.2]} 21. Nb6 {[%clk 0:01:06.2]} 21... Qxa2 {[%clk 0:00:07.8]} 22.
Nxa8 {[%clk 0:01:03.7]} 22... Bd7 {[%clk 0:00:06.7]} 23. Nb6 {[%clk 0:01:02.9]}
23... Qh2 {[%clk 0:00:05.9]} 24. Qf3 {[%clk 0:00:58.6]} 1-0